bitfinex-derivatives/quotes_BNBF0:USTF0_20250305
["timestamp","ask_amount","ask_price","bid_price","bid_amount"]
[1741173615715,4.00674928,601.06,600.27,1.21098633]
[1741173615910,2.53133209,601.05,600.27,1.21098633]
[1741173616109,2.53133209,601.04,600.27,1.21098633]
[1741173616414,3.71392623,601.03,600.27,1.21098633]
[1741173616614,2.10472326,601.02,600.27,1.21098633]
[1741173616815,0.92212912,601.01,600.27,1.21098633]
[1741173617015,0.92212912,601.0,600.27,1.21098633]
[1741173617217,1.18259414,601.02,600.27,1.21098633]
[1741173617424,1.18259414,601.0,600.27,1.21098633]
[1741173617816,1.18259414,600.99,600.28,0.33317785]
[1741173618216,3.08578207,601.16,600.28,0.33317785]
[1741173618418,4.00818792,601.15,600.28,0.33317785]
[1741173618617,2.53232186,601.14,600.28,0.33317785]
[1741173618821,2.53232186,601.13,600.28,0.81317785]
[1741173619021,0.9224589,601.12,600.28,0.81317785]
[1741173619218,0.9224589,601.11,600.28,0.81317785]
[1741173619419,2.10559967,601.1,600.28,0.81317785]
[1741173619617,1.18314077,601.1,600.28,0.81317785]
[1741173620019,1.18314077,601.09,600.28,0.81317785]
[1741173620620,1.18314077,601.08,600.28,0.81317785]
[1741173620820,1.18314077,601.07,600.28,0.81317785]
[1741173621521,1.18314077,601.06,600.28,0.81317785]
[1741173622220,1.18314077,601.05,600.28,0.81317785]
[1741173622521,2.53129406,601.23,600.28,0.81317785]
[1741173622721,2.53129406,601.22,600.28,0.81317785]
[1741173623020,3.71391862,601.21,600.28,0.81317785]
[1741173623221,2.53129406,601.2,600.28,0.81317785]
[1741173623420,2.53129406,601.19,600.28,0.81317785]
[1741173623615,2.53129406,601.18,600.28,0.81317785]
[1741173623818,2.53103047,601.17,600.28,0.81317785]
[1741173624023,0.28959457,601.26,600.28,0.81317785]
[1741173624024,3.71365503,601.16,600.28,0.81317785]
[1741173624223,2.53103047,601.15,600.28,0.81317785]
[1741173624522,3.71365503,601.14,600.28,0.81317785]
[1741173624723,3.71365503,601.13,600.28,0.81317785]
[1741173624920,2.53103047,601.12,600.28,0.81317785]
[1741173625118,2.53103047,601.11,600.28,0.81317785]
[1741173625322,2.53103047,601.1,600.28,0.81317785]
[1741173625523,2.10473206,601.09,600.28,0.81317785]
[1741173625822,0.9221075,601.08,600.28,0.81317785]
[1741173626126,2.10473206,601.07,600.28,0.81317785]
[1741173626317,1.18262456,601.07,600.28,0.81317785]
[1741173626521,1.18262456,601.06,600.28,0.81317785]
[1741173626819,3.08402815,601.16,600.28,0.81317785]
[1741173627023,4.00465014,601.15,600.28,0.81317785]
[1741173627224,0.28962711,601.19,600.28,0.81317785]
[1741173627225,2.52951718,601.14,600.28,0.81317785]
[1741173627425,3.70651181,601.13,600.28,0.81317785]
[1741173627620,0.92062199,601.12,600.28,0.81317785]
[1741173627826,1.17699463,601.11,600.28,0.81317785]
[1741173628325,3.08262303,601.37,600.28,0.81317785]
[1741173628526,4.00356299,601.36,600.28,0.81317785]
[1741173628722,5.18081099,601.35,600.28,0.81317785]
[1741173628923,4.00356299,601.34,600.28,0.81317785]
[1741173629123,4.00377511,601.33,600.28,0.81317785]
[1741173629323,5.18102311,601.32,600.28,0.81317785]
[1741173629524,4.00377511,601.31,600.28,0.81317785]
[1741173629725,4.00377511,601.3,600.28,0.81317785]
[1741173629928,4.00377511,601.29,600.28,0.81317785]
[1741173630126,4.00377511,601.28,600.28,0.81317785]
[1741173630328,4.00377511,601.27,600.28,2.02416418]
[1741173630527,4.00377511,601.26,600.28,2.02416418]
[1741173630728,4.00377511,601.25,600.28,2.02416418]
[1741173630927,4.00377511,601.24,600.28,2.02416418]
[1741173631120,4.00377511,601.23,600.28,2.02416418]
[1741173631328,4.00377511,601.22,600.28,2.02416418]
[1741173631629,4.00376518,601.21,600.28,2.02416418]
[1741173631832,4.00376518,601.2,600.28,2.02416418]
[1741173632133,4.00376518,601.19,600.28,2.02416418]
[1741173632328,2.53025809,601.18,600.28,0.81317785]
[1741173632526,2.53025809,601.17,600.28,0.81317785]
[1741173632726,0.92094193,601.16,600.28,0.81317785]
[1741173632931,0.92094193,601.15,600.28,0.81317785]
[1741173633230,1.177248,601.18,600.28,0.81317785]
[1741173633231,2.09790677,601.14,600.28,0.81317785]
[1741173633432,1.177248,601.13,600.28,0.81317785]
[1741173634336,1.177248,601.12,600.28,0.81317785]
[1741173634833,1.47289351,601.28,600.28,0.81317785]
[1741173635036,4.00237266,601.27,600.28,0.81317785]
[1741173635234,4.00237266,601.26,600.28,0.81317785]
[1741173635536,5.17904987,601.25,600.28,0.81317785]
[1741173635734,4.00237266,601.24,600.28,0.81317785]
[1741173636035,2.52947915,601.23,600.28,0.81317785]
[1741173636232,3.70615636,601.22,600.28,0.81317785]
[1741173636535,3.70615636,601.22,600.33,1.21098633]
[1741173636536,0.92055748,601.21,600.33,1.21098633]
[1741173636835,0.92044223,601.2,600.34,0.33314455]
[1741173637033,1.17667721,601.2,600.34,0.33314455]
[1741173637430,0.92033949,601.28,600.34,0.33314455]
[1741173637734,0.92033949,601.27,600.34,0.33314455]
[1741173637937,1.17651328,601.26,600.34,0.33314455]
[1741173638436,1.60864586,601.35,600.43,1.21098633]
[1741173638637,2.52856812,601.34,600.43,1.21098633]
[1741173638840,3.70484669,601.33,600.43,1.21098633]
[1741173639038,2.52856812,601.32,600.43,1.21098633]
[1741173639238,2.52856812,601.31,600.43,1.21098633]
[1741173639538,3.70458222,601.3,600.43,1.21098633]
[1741173639736,2.52830365,601.29,600.43,1.21098633]
[1741173639935,2.09649137,601.28,600.43,1.21098633]
[1741173640136,0.9202128,601.27,600.43,1.21098633]
[1741173640336,0.9202128,601.26,600.43,1.21098633]
[1741173640538,0.9202128,601.25,600.43,1.21098633]
[1741173640744,0.9202128,601.24,600.43,1.21098633]
[1741173641038,0.91993003,601.23,600.43,1.21098633]
[1741173641244,0.91989494,601.22,600.54,1.21098633]
[1741173641432,1.60776691,601.25,600.54,1.21098633]
[1741173641433,1.17627857,601.21,600.54,1.21098633]
[1741173642133,0.2895536,601.31,600.54,1.21098633]
[1741173642339,3.99942168,601.3,600.54,1.21098633]
[1741173642536,2.52761109,601.29,600.54,1.21098633]
[1741173642740,2.52761109,601.28,600.54,1.21098633]
[1741173643043,2.52761109,601.27,600.54,1.68998633]
[1741173643237,5.17524563,601.26,600.54,1.68998633]
[1741173643445,3.99942168,601.25,600.54,0.479]
[1741173643636,3.99942168,601.24,600.54,0.479]
[1741173643844,3.70343504,601.23,600.54,0.479]
[1741173644142,3.99908139,601.22,600.54,0.479]
[1741173644338,3.99872913,601.21,600.54,0.479]
[1741173644546,3.99872913,601.2,600.54,0.479]
[1741173644739,3.7029208,601.19,600.54,0.479]
[1741173644940,2.52725883,601.18,600.54,0.479]
[1741173645143,3.99876097,601.17,600.54,0.479]
[1741173645341,3.99876097,601.16,600.54,0.479]
[1741173645648,5.17442294,601.15,600.54,0.479]
[1741173645846,3.99876097,601.14,600.54,0.479]
[1741173646043,3.99876097,601.13,600.54,0.479]
[1741173646243,5.17442294,601.12,600.54,0.479]
[1741173646441,3.99876097,601.11,600.54,0.479]
[1741173646638,3.7029208,601.1,600.54,0.479]
[1741173646838,2.52725883,601.09,600.54,0.479]
[1741173647045,1.17566197,601.1,600.54,0.479]
[1741173647046,2.52725883,601.08,600.54,0.479]
[1741173647239,2.52725883,601.07,600.54,0.479]
[1741173647444,2.52741744,601.06,600.54,0.479]
[1741173647645,2.52741744,601.05,600.54,0.479]
[1741173647847,0.91986735,601.04,600.54,0.479]
[1741173648051,0.91986735,601.03,600.54,0.479]
[1741173648260,2.52740954,601.02,600.54,0.479]
[1741173648442,2.09552932,601.01,600.54,0.479]
[1741173648642,0.91980988,601.0,600.54,0.479]
[1741173648849,0.91980988,600.99,600.54,0.479]
[1741173649050,1.17566197,600.99,600.54,0.479]
[1741173649547,1.17566197,600.98,600.54,0.479]
[1741173649949,1.47183876,601.17,600.54,0.479]
[1741173650145,3.9994578,601.16,600.54,0.479]
[1741173650343,3.9994578,601.15,600.54,0.479]
[1741173650549,5.17546032,601.14,600.54,0.479]
[1741173650749,3.9994578,601.13,600.54,0.479]
[1741173650951,3.9994578,601.12,600.54,0.479]
[1741173651145,3.9994578,601.11,600.54,0.479]
[1741173651344,3.9994578,601.1,600.54,0.479]
[1741173651544,2.39174392,601.09,600.54,0.479]
[1741173651750,3.99972292,601.08,600.54,0.479]
[1741173651950,3.99972292,601.07,600.54,0.479]
[1741173652249,3.70388668,601.06,600.54,0.479]
[1741173652452,2.52788416,601.05,600.54,0.479]
[1741173652649,0.91990516,601.04,600.54,0.479]
[1741173652851,2.09590768,601.03,600.54,0.479]
[1741173653147,0.91990516,601.02,600.54,0.479]
[1741173653452,2.09590768,601.01,600.54,0.479]
[1741173653646,1.17600252,601.0,600.54,0.479]
[1741173654252,1.17600252,600.99,600.54,0.479]
[1741173654948,1.17600252,600.98,600.54,0.479]
[1741173655553,1.17600252,600.97,600.54,0.479]
[1741173656056,1.17600252,600.96,600.54,0.479]
[1741173656751,1.17600252,600.95,600.54,0.479]
[1741173657155,1.47346564,601.09,600.54,0.479]
[1741173657351,4.00361514,601.08,600.54,0.479]
[1741173657554,4.00361514,601.07,600.54,0.479]
[1741173657851,4.00361514,601.06,600.54,0.479]
[1741173658052,4.00361514,601.05,600.54,0.479]
[1741173658252,4.00361514,601.04,600.54,0.479]
[1741173658455,5.18111021,601.03,600.54,0.479]
[1741173658650,4.00361514,601.02,600.54,0.479]
[1741173658853,3.70764457,601.01,600.54,0.479]
[1741173659049,2.5301495,601.0,600.54,0.479]
[1741173659253,1.17749507,601.01,600.54,0.479]
[1741173659453,2.09910756,601.0,600.54,0.479]
[1741173659649,0.92159004,600.99,600.54,0.479]
[1741173659849,1.17749507,601.0,600.54,0.479]
[1741173660049,2.09909441,600.99,600.54,0.479]
[1741173660355,2.09932347,600.98,600.54,0.479]
[1741173660558,1.17749507,600.98,600.54,0.479]
[1741173660756,1.17749507,600.97,600.54,0.479]
[1741173661156,1.17749507,600.96,600.34,0.33314455]
[1741173661554,0.92208567,600.95,600.34,0.33314455]
[1741173661750,2.53332454,600.94,600.34,0.33314455]
[1741173661956,2.53330553,600.93,600.34,0.33314455]
[1741173662154,2.53386674,600.92,600.34,0.33314455]
[1741173662355,0.92208567,600.91,600.34,0.33314455]
[1741173662553,0.92208567,600.9,600.34,0.33314455]
[1741173662755,2.53365777,600.89,600.34,0.33314455]
[1741173662956,2.53365777,600.88,600.19,0.28968256]
[1741173663154,1.17749507,600.89,600.19,0.28968256]
[1741173663155,4.0089943,600.87,600.19,0.28968256]
[1741173663355,1.17749507,600.89,600.19,0.28968256]
[1741173663356,2.53365777,600.86,600.19,0.28968256]
[1741173663556,2.53373151,600.85,600.19,0.28968256]
[1741173663757,1.17749507,600.86,600.19,0.28968256]
[1741173663954,1.17749507,600.84,600.19,0.28968256]
[1741173664151,0.92215497,600.83,600.19,0.28968256]
[1741173664350,0.92215497,600.82,600.2,0.479]
[1741173664556,0.92215497,600.81,600.2,0.479]
[1741173664751,1.17749507,600.82,600.2,0.479]
[1741173665352,3.08887497,601.03,600.21,0.3332167]
[1741173665652,3.71458639,601.02,600.21,0.3332167]
[1741173665857,2.5354325,601.01,600.21,0.3332167]
[1741173666061,2.53561564,601.0,600.21,0.3332167]
[1741173666257,2.53524764,600.99,600.21,0.3332167]
[1741173666456,0.92241031,600.98,600.21,0.3332167]
[1741173666652,0.92241031,600.97,600.21,0.3332167]
[1741173666857,2.53501065,600.96,600.21,0.3332167]
[1741173667157,0.92241031,600.95,600.21,0.3332167]
[1741173667459,2.53491289,600.94,600.21,0.3332167]
[1741173667757,0.92241031,600.93,600.21,0.3332167]
[1741173667956,2.1015642,600.92,600.21,0.3332167]
[1741173668158,1.17915389,600.92,600.21,0.3332167]
[1741173668360,1.17915389,600.91,600.21,0.3332167]
[1741173668559,2.10145489,600.9,600.21,1.54420303]
[1741173668759,0.922301,600.89,600.21,1.54420303]
[1741173668957,2.10145489,600.88,600.21,1.54420303]
[1741173669153,1.17915389,600.88,600.21,1.54420303]
[1741173669353,2.53489208,600.87,600.21,1.54420303]
[1741173669553,4.01002131,600.86,600.21,1.54420303]
[1741173669758,4.01002131,600.85,600.21,0.3332167]
[1741173669959,4.01002131,600.84,600.21,0.3332167]
[1741173670155,3.71404597,600.83,600.21,0.3332167]
[1741173670357,2.53442202,600.82,600.21,0.3332167]
[1741173670558,0.92222791,600.81,600.21,0.3332167]
[1741173670858,2.1013818,600.8,600.21,0.3332167]
[1741173671060,1.17915389,600.8,600.21,0.3332167]
[1741173671356,1.17915389,600.79,600.21,0.3332167]
[1741173671859,1.47453148,601.03,600.21,0.3332167]
[1741173672161,4.0074342,601.02,600.21,0.3332167]
[1741173672355,5.18549462,601.01,600.21,0.3332167]
[1741173672557,4.0074342,601.0,600.21,0.3332167]
[1741173672760,1.17806042,601.01,600.21,0.3332167]
[1741173672761,4.0074342,600.99,600.21,0.3332167]
[1741173672957,4.0074342,600.98,600.21,0.3332167]
[1741173673161,4.0074342,600.97,600.21,0.3332167]
[1741173673362,4.0074342,600.96,600.21,0.3332167]
[1741173673554,4.0074342,600.95,600.21,0.3332167]
[1741173673756,4.0074342,600.94,600.21,0.3332167]
[1741173673957,4.0074342,600.93,600.21,0.3332167]
[1741173674157,4.0074342,600.92,600.21,0.3332167]
[1741173674361,4.0074342,600.91,600.21,0.3332167]
[1741173674562,4.0074342,600.9,600.21,0.3332167]
[1741173674762,4.0074342,600.89,600.21,0.3332167]
[1741173674963,4.0074342,600.88,600.21,0.3332167]
[1741173675163,4.0074342,600.87,600.21,0.3332167]
[1741173675464,2.53290272,600.86,600.21,0.3332167]
[1741173675659,3.71096314,600.85,600.21,0.3332167]
[1741173675864,0.92166735,600.84,600.21,0.3332167]
[1741173676058,0.92166735,600.83,600.21,0.3332167]
[1741173676364,1.17806042,600.83,600.21,0.3332167]
[1741173677058,2.098612,600.82,600.21,0.3332167]
[1741173677265,1.17806042,600.81,600.21,0.3332167]
[1741173677960,1.17806042,600.8,600.21,0.3332167]
[1741173678759,1.17806042,600.79,600.21,0.3332167]
[1741173679264,0.92007819,600.85,600.21,0.3332167]
[1741173679466,0.28978266,600.87,600.22,0.478]
[1741173679667,0.92007626,600.86,600.22,0.478]
[1741173679967,0.92007626,600.85,600.22,0.478]
[1741173680163,1.1761761,600.86,600.22,0.478]
[1741173680763,1.1761761,600.85,600.22,0.478]
[1741173681362,3.99877232,601.06,600.22,0.478]
[1741173681562,3.99877232,601.05,600.22,0.478]
[1741173681763,3.99877232,601.04,600.22,0.478]
[1741173681959,5.17495848,601.03,600.22,0.478]
[1741173682164,3.99877232,601.02,600.22,0.478]
[1741173682465,3.99892348,601.01,600.22,0.478]
[1741173682661,3.99892348,601.0,600.22,0.478]
[1741173682859,3.99892348,600.99,600.22,0.478]
[1741173683063,3.99892348,600.98,600.22,0.478]
[1741173683264,3.99892348,600.97,600.22,0.478]
[1741173683566,2.52676174,600.96,600.22,0.478]
[1741173683766,2.52676174,600.95,600.22,0.478]
[1741173683962,2.52676174,600.94,600.22,0.478]
[1741173684167,2.52676174,600.93,600.22,0.478]
[1741173684367,0.92012211,600.92,600.22,0.478]
[1741173684562,0.92012211,600.91,600.22,0.478]
[1741173684768,0.9199872,600.9,600.22,0.478]
[1741173685069,1.17618616,600.9,600.22,0.478]
[1741173685265,1.17618616,600.89,600.22,0.478]
[1741173685664,1.17618616,600.88,600.22,0.478]
[1741173686170,1.17618616,600.87,600.22,0.478]
[1741173686569,1.47207047,601.04,600.22,0.478]
[1741173686872,3.99895858,601.03,600.22,0.478]
[1741173687062,5.17514278,601.02,600.22,0.478]
[1741173687265,3.99895858,601.01,600.22,0.478]
[1741173687467,3.99895858,601.0,600.22,0.478]
[1741173687668,3.99895858,600.99,600.22,0.478]
[1741173687866,3.99895858,600.98,600.22,0.478]
[1741173688165,3.99833959,600.97,600.22,0.478]
[1741173688369,3.99833959,600.96,600.22,0.478]
[1741173688570,3.99833959,600.95,600.22,0.478]
[1741173688771,3.99855114,600.94,600.22,0.478]
[1741173688967,2.52659377,600.93,600.22,0.478]
[1741173689170,2.52659377,600.92,600.22,0.478]
[1741173689472,2.52659377,600.91,600.22,0.478]
[1741173689674,3.99850944,600.9,600.22,0.478]
[1741173689871,3.99850944,600.89,600.22,0.478]
[1741173690072,3.99850944,600.88,600.22,0.478]
[1741173690271,5.17469364,600.87,600.22,0.478]
[1741173690468,3.99850944,600.86,600.22,0.478]
[1741173690773,3.99850944,600.85,600.22,0.478]
[1741173690974,1.1761842,600.86,600.22,0.478]
[1741173690975,3.99850944,600.84,600.22,0.478]
[1741173691168,3.99850944,600.83,600.22,0.478]
[1741173691372,2.52659377,600.82,600.22,0.478]
[1741173691567,2.52659377,600.81,600.22,0.478]
[1741173691769,0.91984113,600.8,600.22,0.478]
[1741173691973,0.91984113,600.79,600.22,0.478]
[1741173692273,2.09602533,600.78,600.22,0.478]
[1741173692467,1.1761842,600.78,600.22,0.478]
[1741173692771,0.28974888,600.86,600.22,0.478]
[1741173692975,3.99729202,600.85,600.22,0.478]
[1741173693175,2.52577033,600.84,600.22,0.478]
[1741173693369,3.70172825,600.83,600.22,0.478]
[1741173693569,0.91970106,600.82,600.22,0.478]
[1741173693771,0.91970106,600.81,600.22,0.478]
[1741173694071,1.17595792,600.8,600.22,0.478]
[1741173694869,1.471417,600.92,600.22,0.478]
[1741173695078,3.99666018,600.91,600.22,0.478]
[1741173695278,3.99666018,600.9,600.22,0.478]
[1741173695478,3.99666018,600.89,600.22,0.478]
[1741173695673,3.99666018,600.88,600.22,0.478]
[1741173695877,3.70145025,600.87,600.22,0.478]
[1741173696077,2.52524318,600.86,600.22,0.478]
[1741173696277,3.70145025,600.85,600.22,0.478]
[1741173696477,0.91957171,600.84,600.22,0.478]
[1741173696675,1.17620707,600.85,600.21,0.3332167]
[1741173696876,1.17620707,600.84,600.21,0.3332167]
[1741173697479,1.17620707,600.83,600.21,0.3332167]
[1741173698075,1.17620707,600.82,600.21,0.3332167]
[1741173698474,3.07749282,600.94,600.21,0.3332167]
[1741173698674,3.9972419,600.93,600.21,0.3332167]
[1741173698873,3.70286443,600.92,600.21,0.3332167]
[1741173699073,2.525794,600.91,600.21,0.3332167]
[1741173699275,1.60604492,600.9,600.21,0.3332167]
[1741173699481,0.92029427,600.89,600.21,0.3332167]
[1741173699780,1.17707043,600.88,600.22,0.478]
[1741173700379,1.47284522,601.02,600.22,0.478]
[1741173700581,0.28969944,601.05,600.22,0.478]
[1741173700582,2.52899742,601.01,600.22,0.478]
[1741173700783,0.28969944,601.05,600.22,0.478]
[1741173700784,2.52899742,601.0,600.22,0.478]
[1741173700978,2.52899742,600.99,600.22,0.478]
[1741173701181,1.17790058,600.99,600.22,0.478]
[1741173701378,2.52977627,600.98,600.22,0.478]
[1741173701581,2.52977627,600.97,600.22,0.478]
[1741173701776,3.70767685,600.96,600.22,0.478]
[1741173701982,2.52977627,600.95,600.22,0.478]
[1741173702282,3.70767685,600.94,600.22,0.478]
[1741173702482,0.92103807,600.93,600.22,0.478]
[1741173702679,0.92103807,600.92,600.22,0.478]
[1741173702883,0.92103807,600.91,600.22,0.478]
[1741173703182,0.92130673,600.9,600.22,0.478]
[1741173703382,1.17790058,600.93,600.22,0.478]
[1741173703576,1.17790058,600.89,600.22,0.478]
[1741173704078,1.17790058,600.88,600.22,0.478]
[1741173704581,1.47436931,601.05,600.26,1.21098633]
[1741173704781,4.00524646,601.04,600.26,1.21098633]
[1741173704982,4.00524646,601.03,600.26,1.21098633]
[1741173705176,4.00524646,601.02,600.26,1.21098633]
[1741173705377,4.00524646,601.01,600.26,1.21098633]
[1741173705584,4.00524646,601.0,600.26,1.21098633]
[1741173705777,4.00524646,600.99,600.26,1.21098633]
[1741173705981,2.53087715,600.98,600.26,1.21098633]
[1741173706178,2.53087715,600.97,600.26,1.21098633]
[1741173706381,2.53087715,600.96,600.26,1.21098633]
[1741173706583,2.53087715,600.95,600.26,1.21098633]
[1741173706783,2.53115337,600.94,600.26,1.21098633]
[1741173706984,0.92153788,600.93,600.26,1.21098633]
[1741173707184,0.92153788,600.92,600.26,1.21098633]
[1741173707378,0.92153788,600.91,600.26,1.21098633]
[1741173707578,1.17860034,600.93,600.26,1.21098633]
[1741173707782,2.10032768,600.92,600.26,1.21098633]
[1741173707981,0.92172734,600.91,600.26,1.21098633]
[1741173708183,1.17860034,600.92,600.26,1.21098633]
[1741173708381,1.17860034,600.9,600.26,1.21098633]
[1741173708685,1.27131408,601.22,600.33,1.21098633]
[1741173708977,4.00671715,601.21,600.33,1.21098633]
[1741173709178,5.18540552,601.2,600.33,1.21098633]
[1741173709377,4.98838725,601.19,600.33,1.21098633]
[1741173709583,6.16707562,601.18,600.33,1.21098633]
[1741173709782,4.00671715,601.17,600.33,1.21098633]
[1741173709977,6.16707562,601.16,600.33,1.21098633]
[1741173710279,0.9816701,601.14,600.33,1.21098633]
[1741173710484,5.18540552,601.13,600.33,1.21098633]
[1741173710684,4.00639815,601.12,600.27,0.3331834]
[1741173710877,4.00639815,601.11,600.27,0.3331834]
[1741173711083,4.00639815,601.1,600.27,0.3331834]
[1741173711282,4.00639815,601.09,600.27,0.3331834]
[1741173711482,4.00639815,601.08,600.27,0.3331834]
[1741173711682,5.18508652,601.07,600.27,0.3331834]
[1741173711883,4.00639815,601.06,600.27,0.3331834]
[1741173712092,2.10052593,601.05,600.27,0.3331834]
[1741173712383,0.92183756,601.04,600.27,0.3331834]
[1741173712581,2.10052593,601.03,600.27,0.3331834]
[1741173712787,1.17868837,601.03,600.27,0.3331834]
[1741173713279,1.17868837,601.02,600.27,0.3331834]
[1741173713679,0.28962711,601.24,600.27,0.3331834]
[1741173713881,4.00638009,601.23,600.27,0.3331834]
[1741173714080,5.18500521,601.22,600.27,0.8111834]
[1741173714281,5.18500521,601.21,600.27,0.8111834]
[1741173714486,4.00638009,601.2,600.27,0.8111834]
[1741173714687,4.00638009,601.19,600.27,0.8111834]
[1741173714889,5.18500521,601.18,600.27,0.8111834]
[1741173715085,4.00638009,601.17,600.27,0.8111834]
[1741173715385,3.71016975,601.16,600.34,1.21098633]
[1741173715590,2.53090511,601.15,600.35,0.333139]
[1741173715791,0.92177216,601.14,600.35,0.333139]
[1741173715988,0.92177216,601.13,600.35,0.333139]
[1741173716291,1.47369747,601.37,600.35,0.333139]
[1741173716488,4.00349685,601.36,600.35,0.333139]
[1741173716689,4.00349685,601.35,600.35,0.333139]
[1741173716889,4.00349685,601.34,600.35,0.333139]
[1741173717101,4.00349685,601.33,600.35,0.333139]
[1741173717286,5.18130619,601.32,600.35,0.333139]
[1741173717493,4.00349685,601.31,600.35,0.333139]
[1741173717686,4.00349685,601.3,600.35,0.333139]
[1741173717987,0.28954758,601.38,600.35,0.333139]
[1741173717988,3.70760872,601.29,600.35,0.333139]
[1741173718294,2.52979938,601.28,600.35,0.333139]
[1741173718486,2.52979938,601.27,600.35,0.333139]
[1741173718695,2.52979938,601.26,600.35,0.333139]
[1741173718988,0.92108838,601.25,600.35,0.333139]
[1741173719191,0.92108838,601.24,600.35,0.333139]
[1741173719393,0.92108838,601.23,600.35,0.333139]
[1741173719603,0.92108838,601.22,600.35,0.333139]
[1741173719893,0.92108838,601.21,600.35,0.333139]
[1741173720087,2.09889772,601.2,600.35,0.333139]
[1741173720289,0.92108838,601.19,600.35,0.333139]
[1741173720595,0.91894946,601.18,600.35,0.333139]
[1741173720792,0.91894946,601.17,600.35,0.333139]
[1741173720990,1.17780934,601.16,600.35,0.333139]
[1741173721393,1.46921025,601.37,600.35,0.333139]
[1741173721693,0.28956204,601.39,600.35,0.333139]
[1741173721694,3.99106944,601.36,600.35,0.333139]
[1741173721894,3.99106944,601.35,600.35,0.333139]
[1741173722093,3.99106944,601.34,600.35,0.333139]
[1741173722292,5.1650896,601.33,600.35,0.333139]
[1741173722593,5.1650896,601.32,600.35,0.333139]
[1741173722795,5.1650896,601.31,600.35,0.333139]
[1741173722995,3.99106944,601.3,600.35,0.333139]
[1741173723188,3.99106944,601.29,600.35,0.333139]
[1741173723394,5.1650896,601.28,600.35,0.333139]
[1741173723691,3.99106944,601.27,600.35,0.333139]
[1741173723894,3.99106944,601.26,600.35,0.333139]
[1741173724196,2.3874367,601.26,600.35,0.333139]
[1741173724595,3.99116753,601.25,600.35,0.333139]
[1741173724790,1.17402016,601.28,600.35,0.333139]
[1741173724993,0.91827724,601.24,600.35,0.333139]
[1741173725193,1.60375129,601.27,600.35,0.333139]
[1741173725695,1.60375129,601.26,600.35,0.333139]
[1741173725897,0.91760021,601.25,600.35,0.333139]
[1741173726099,1.17402016,601.28,600.35,0.333139]
[1741173726298,2.09140013,601.27,600.35,0.333139]
[1741173726597,0.91744413,601.26,600.35,0.333139]
[1741173726792,2.09146429,601.25,600.35,0.333139]
[1741173726998,1.17402016,601.25,600.35,0.333139]
[1741173727493,2.09158713,601.35,600.35,0.333139]
[1741173727697,2.09141959,601.34,600.35,0.333139]
[1741173727898,1.17402016,601.34,600.35,0.333139]
[1741173728100,2.09118618,601.33,600.35,0.333139]
[1741173728297,0.91708543,601.32,600.35,0.333139]
[1741173728500,0.91708543,601.31,600.35,0.333139]
[1741173728800,2.09110559,601.3,600.35,0.333139]
[1741173728998,0.91693178,601.29,600.35,0.333139]
[1741173729199,1.17402016,601.28,600.35,0.333139]
[1741173729699,1.17402016,601.27,600.35,0.333139]
[1741173729900,1.60133575,601.33,600.35,0.333139]
[1741173730102,2.08867786,601.32,600.35,0.333139]
[1741173730396,2.51741989,601.31,600.35,0.333139]
[1741173730594,0.9166691,601.3,600.35,0.333139]
[1741173730799,0.9166691,601.29,600.35,0.333139]
[1741173730999,1.17200876,601.31,600.35,0.333139]
[1741173731199,2.08853249,601.3,600.35,0.333139]
[1741173731500,1.17200876,601.29,600.35,0.333139]
[1741173731696,0.91625158,601.28,600.35,0.333139]
[1741173731902,0.91625158,601.27,600.35,0.333139]
[1741173732104,0.91625158,601.26,600.35,0.333139]
[1741173732304,0.91625158,601.25,600.35,0.333139]
[1741173732603,1.17200876,601.24,600.35,0.333139]
[1741173732903,1.17200876,601.23,600.35,0.333139]
[1741173733302,1.17200876,601.22,600.35,0.333139]
[1741173733902,3.06505135,601.48,600.35,0.333139]
[1741173734101,0.28958131,601.29,600.35,0.333139]
[1741173734299,0.91585314,601.28,600.35,0.333139]
[1741173734505,0.91585314,601.27,600.35,0.333139]
[1741173734706,1.17111073,601.28,600.35,0.333139]
[1741173734904,1.17111073,601.27,600.35,0.333139]
[1741173735406,3.06489237,601.37,600.36,1.21098633]
[1741173735600,3.98060672,601.36,600.36,1.21098633]
[1741173735802,5.15152004,601.35,600.36,1.21098633]
[1741173736005,2.51517081,601.34,600.36,1.21098633]
[1741173736202,3.68608413,601.33,600.36,1.21098633]
[1741173736408,1.17091332,601.33,600.36,1.21098633]
[1741173737004,3.06479138,601.47,600.36,1.21098633]